[Event "Begum Laila Alam 12th Women 2022"]
[Site "Dhaka"]
[Date "2022.05.11"]
[Round "7.6"]
[White "Neelava, Choudhury"]
[Black "Tasnia Tarannum, Orpa"]
[Result "1-0"]
[ECO "B15"]
[WhiteElo "1515"]
[BlackElo "1691"]
[Annotator "NA RC COMBH"]
[PlyCount "101"]
[EventDate "2022.05.05"]
[EventType "swiss"]
[EventCountry "BAN"]
[SourceTitle "playchess.com"]
[Source "ChessBase"]
[SourceQuality "1"]
[TimeControl "5400+30"]

1. e4 {[%emt 0:05:39]} c6 {[%emt 0:00:05]} 2. d4 {[%emt 0:00:04]} d5 {[%emt 0:00:03]} 3. Nc3 {[%emt 0:00:10]} dxe4 {[%emt 0:00:05]} 4. Nxe4 {[%emt 0:00:07]} Nf6 {[%emt 0:00:04]} 5. Nxf6+ {[%emt 0:00:32]} exf6 {[%emt 0:00:05]} 6. c3 {[%emt 0:00:11]} Bd6 {[%emt 0:00:04]} 7. Bd3 {[%emt 0:00:08]} O-O {[%emt 0:00:05]} 8. Qc2 {[%emt 0:01:01]} Re8+ {[%emt 0:00:05]} 9. Ne2 {[%emt 0:00:05]} h6 {[%emt 0:00:06]} 10. Be3 {[%emt 0:01:05]} b6 {[%emt 0:02:26]} 11. O-O-O {[%emt 0:01:40]} Be6 {[%emt 0:01:22]} 12. Bf4 {[%emt 0:04:04]} b5 {[%emt 0:05:22]} 13. d5 {[%emt 0:02:58]} Bxd5 {[%emt 0:09:15]} 14. Bxb5 {[%emt 0:00:34]} Rxe2 {[%emt 0:01:57]} 15. Qxe2 {[%emt 0:01:57]} Bxf4+ {[%emt 0:00:04]} 16. Kb1 {[%emt 0:00:47]} cxb5 {[%emt 0:06:13]} 17. Rhe1 {[%emt 0:06:44]} Nc6 {[%emt 0:12:53]} 18. Qxb5 {[%emt 0:01:47]} Be4+ {[%emt 0:00:10]} 19. Ka1 {[%emt 0:00:12]} Qb6 {[%emt 0:04:45]} 20. Qxb6 {[%emt 0:02:05]} axb6 {[%emt 0:00:03]} 21. Rxe4 {[%emt 0:00:36]} Be5 {[%emt 0:03:04]} 22. f4 {[%emt 0:01:04]} Bb8 {[%emt 0:02:05]} 23. Rc4 {[%emt 1:08:30]} Na7 {[%emt 0:05:09]} 24. Rd8+ {[%emt 0:00:00]} Kh7 {[%emt 0:01:23]} 25. Re4 {[%emt 0:00:00]} Nc6 {[%emt 0:02:32]} 26. Rc8 {[%emt 0:00:00]} Na7 {[%emt 0:01:14]} 27. Rf8 {[%emt 0:00:00]} Nc6 {[%emt 0:01:15]} 28. Ree8 {[%emt 0:00:00]} Rxa2+ {[%emt 0:03:41]} 29. Kxa2 {[%emt 0:00:00]} Bxf4 {[%emt 0:00:04]} 30. Rxf7 {[%emt 0:00:00]} Bxh2 {[%emt 0:00:37]} 31. Rb7 {[%emt 0:00:00]} Bg1 {[%emt 0:03:06]} 32. Rc7 {[%emt 0:00:00]} Ne5 {[%emt 0:01:16]} 33. Ree7 {[%emt 0:00:00]} Kg6 {[%emt 0:01:08]} 34. Rxg7+ {[%emt 0:00:00]} Kf5 {[%emt 0:00:04]} 35. Rgf7 {[%emt 0:00:00]} Nxf7 {[%emt 0:00:54]} 36. Rxf7 {[%emt 0:00:00]} h5 {[%emt 0:01:25]} 37. b4 {[%emt 0:00:00]} h4 {[%emt 0:00:45]} 38. c4 {[%emt 0:00:00]} Ke6 {[%emt 0:01:13]} 39. Rh7 {[%emt 0:00:00]} Bf2 {[%emt 0:00:10]} 40. Kb3 {[%emt 0:00:00]} Ke5 {[%emt 0:00:14]} 41. Ka4 {[%emt 0:00:00]} Kd6 {[%emt 0:13:48]} 42. Kb5 {[%emt 0:00:00]} f5 {[%emt 0:02:03]} 43. Rh5 {[%emt 0:00:00]} f4 {[%emt 0:00:50]} 44. c5+ {[%emt 0:00:00]} bxc5 {[%emt 0:00:37]} 45. bxc5+ {[%emt 0:00:00]} Kc7 {[%emt 0:00:20]} 46. c6 {[%emt 0:00:00]} f3 {[%emt 0:04:19]} 47. Rh7+ {[%emt 0:00:00]} Kc8 {[%emt 0:00:11]} 48. gxf3 {[%emt 0:00:00]} Bg3 {[%emt 0:01:05]} 49. Kc4 {[%emt 0:00:00]} Bf2 {[%emt 0:01:51]} 50. Kd5 {[%emt 0:00:00]} Bg3 {[%emt 0:00:16]} 51. Ke4 {[%emt 0:00:00]} 1-0